bitfinex/quotes_BTCUSD_20250812
["timestamp","ask_amount","ask_price","bid_price","bid_amount"]
[1755022873095,1.32504242,120040.0,120030.0,0.09]
[1755022873704,1.40776567,120040.0,120030.0,0.09]
[1755022874032,0.84827679,120040.0,120030.0,0.22276]
[1755022874313,0.84827679,120040.0,120030.0,0.09]
[1755022874314,0.76555354,120040.0,120030.0,0.09]
[1755022874530,1.32504242,120040.0,120030.0,0.09]
[1755022874707,1.32504242,120040.0,120030.0,0.22276]
[1755022875669,1.32404242,120040.0,120030.0,0.22276]
[1755022875875,1.3109572,120040.0,120030.0,0.22276]
[1755022876019,1.29350818,120040.0,120030.0,0.22276]
[1755022876200,0.19197944,120040.0,120030.0,0.22276]
[1755022876435,1.3109572,120040.0,120030.0,0.22276]
[1755022879233,0.19197944,120040.0,120030.0,0.09]
[1755022879423,0.75146832,120040.0,120030.0,0.22276]
[1755022879927,0.83395275,120040.0,120030.0,0.22276]
[1755022881180,1.39344163,120040.0,120030.0,0.22276]
[1755022881601,0.83395275,120040.0,120030.0,0.22276]
[1755022882481,0.83395275,120040.0,120030.0,0.09]
[1755022882639,0.75146832,120040.0,120030.0,0.22272]
[1755022884018,0.19197944,120040.0,120030.0,0.22272]
[1755022884246,1.3109572,120040.0,120030.0,0.22272]
[1755022884890,0.19197944,120040.0,120030.0,0.22272]
[1755022885135,0.75146832,120040.0,120030.0,0.22272]
[1755022885520,0.79848878,120040.0,120030.0,0.09]
[1755022885819,0.79848878,120040.0,120030.0,0.22587]
[1755022887182,1.35797766,120040.0,120030.0,0.09]
[1755022887387,1.35797766,120040.0,120030.0,0.22272]
[1755022888429,1.44070091,120040.0,120030.0,0.09]
[1755022888634,1.44070091,120040.0,120030.0,0.22272]
[1755022888820,1.46570091,120040.0,120030.0,1e-08]
[1755022889041,0.16665277,120010.0,120000.0,0.00315]
[1755022889303,0.77929979,120010.0,120000.0,0.13587]
[1755022889516,0.77866597,120010.0,120000.0,0.13587]
[1755022889963,0.21917709,120010.0,120000.0,0.00515]
[1755022890178,0.77866597,120010.0,120000.0,0.13787]
[1755022890599,0.74359067,120010.0,120000.0,0.00515]
[1755022890835,0.74359067,120010.0,120000.0,0.13787]
[1755022891245,0.74359067,120010.0,120000.0,0.00515]
[1755022891469,0.74359067,120010.0,120000.0,0.13787]
[1755022891915,0.74359067,120010.0,120000.0,0.00515]
[1755022892149,0.76603454,120010.0,120000.0,0.00515]
[1755022892366,0.76603454,120010.0,120000.0,0.13787]
[1755022893615,0.76603454,120010.0,120000.0,0.00515]
[1755022893917,0.76603454,120010.0,120000.0,0.13787]
[1755022894936,0.76603454,120010.0,120000.0,0.00515]
[1755022895179,0.16668055,119990.0,119980.0,0.025012]
[1755022895412,0.72680325,119990.0,119980.0,0.24241525]
[1755022895773,0.16668055,119990.0,119980.0,0.24547525]
[1755022895985,0.16731437,119990.0,119980.0,0.24547525]
[1755022896842,0.16731437,119990.0,119980.0,0.11279525]
[1755022897047,0.16731437,119990.0,119980.0,0.24547525]
[1755022898052,0.80928768,119990.0,119980.0,0.030072]
[1755022898277,0.72616943,119990.0,119980.0,0.13774]
[1755022898504,0.72616943,119990.0,119980.0,0.00506]
[1755022898725,0.72616943,119990.0,119980.0,0.13774]
[1755022900031,0.72616943,119990.0,119980.0,0.00506]
[1755022900245,0.80865386,119990.0,119980.0,0.13774]
[1755022901222,0.82610288,119990.0,119970.0,0.025015]
[1755022901425,0.16670834,119970.0,119960.0,0.19992]
[1755022901579,0.72619722,119970.0,119960.0,0.20498]
[1755022901780,0.72619722,119970.0,119960.0,0.362677]
[1755022902278,0.72619722,119970.0,119960.0,0.229997]
[1755022902501,0.75202905,119970.0,119960.0,0.357617]
[1755022902711,0.76947807,119970.0,119960.0,0.3326]
[1755022903133,0.19254017,119970.0,119960.0,0.20498]
[1755022903444,0.19254017,119970.0,119960.0,0.33766]
[1755022903848,0.16670834,119970.0,119960.0,0.20498]
[1755022904108,0.16734216,119970.0,119960.0,0.33766]
[1755022904311,0.16734216,119970.0,119960.0,0.20498]
[1755022904524,0.16734216,119970.0,119960.0,0.33766]
[1755022905180,0.72683104,119970.0,119960.0,0.33766]
[1755022905402,0.16670834,119970.0,119960.0,0.362677]
[1755022905607,0.16734216,119970.0,119960.0,0.362677]
[1755022905819,0.24982659,119970.0,119960.0,0.229997]
[1755022905966,0.24982659,119970.0,119960.0,0.360677]
[1755022905967,0.80868165,119970.0,119960.0,0.360677]
[1755022906173,0.82613067,119970.0,119960.0,0.19992]
[1755022906519,0.16673614,119950.0,119940.0,0.00306]
[1755022906740,0.72685884,119950.0,119940.0,0.162761]
[1755022906946,0.72622502,119950.0,119940.0,0.162761]
[1755022907356,0.72622502,119950.0,119940.0,0.030081]
[1755022907565,0.72622502,119950.0,119940.0,0.025021]
[1755022907739,0.16673614,119950.0,119940.0,0.028081]
[1755022908011,0.16736996,119950.0,119940.0,0.030081]
[1755022908213,0.16736996,119950.0,119940.0,0.162761]
[1755022908365,0.16736996,119950.0,119940.0,0.030081]
[1755022908562,0.16736996,119950.0,119940.0,0.162761]
[1755022908822,0.72685884,119950.0,119940.0,0.162761]
[1755022908986,0.16673614,119950.0,119940.0,0.162761]
[1755022909224,0.16736996,119950.0,119940.0,0.162761]
[1755022909354,0.15984996,119950.0,119940.0,0.162761]
[1755022909560,0.15921614,119950.0,119940.0,0.030081]
[1755022909769,0.15921614,119950.0,119940.0,0.32951104]
[1755022909968,0.15921614,119950.0,119940.0,0.41223429]
[1755022910168,0.16673614,119950.0,119940.0,0.41223429]
[1755022911046,0.16673471,119960.0,119940.0,0.41223429]
[1755022911227,0.16673614,119950.0,119940.0,0.96866317]
[1755022911570,0.16673614,119950.0,119940.0,0.27649429]
[1755022911783,0.16673614,119950.0,119940.0,0.41223429]
[1755022912185,0.16673614,119950.0,119940.0,0.41219429]
[1755022912397,0.16673614,119950.0,119940.0,0.24544425]
[1755022912594,0.16736996,119950.0,119940.0,0.24544425]
[1755022912957,0.16736996,119950.0,119940.0,0.41219429]
[1755022913520,0.16736996,119950.0,119940.0,0.24544425]
[1755022914253,0.16736996,119950.0,119940.0,0.41219429]
[1755022914681,0.00063382,119950.0,119940.0,0.41219429]
[1755022914795,0.16736853,119960.0,119950.0,0.16673614]
[1755022915000,0.16736853,119960.0,119950.0,0.17179614]
[1755022916073,0.00063382,119960.0,119950.0,0.17179614]
[1755022916284,0.16735606,119960.0,119950.0,0.17179614]
[1755022916913,0.16735606,119960.0,119950.0,0.19681514]
[1755022917319,0.00063382,119960.0,119950.0,0.19681514]
[1755022917731,0.16735606,119960.0,119950.0,0.19681514]
[1755022918550,0.00063382,119960.0,119950.0,0.19681514]
[1755022918974,0.00063382,119960.0,119930.0,0.33661685]
[1755022918975,0.16674569,119950.0,119930.0,0.33661685]
[1755022919183,0.00063382,119940.0,119930.0,0.33355685]
[1755022919407,0.00063382,119940.0,119930.0,0.29310552]
[1755022919408,0.16738386,119940.0,119930.0,0.29310552]
[1755022919625,0.16738386,119940.0,119930.0,0.48489246]
[1755022919825,0.16675004,119940.0,119930.0,0.48800246]
[1755022919976,0.16738386,119940.0,119930.0,0.32123852]
[1755022920385,0.16674569,119950.0,119940.0,0.16675004]
[1755022920597,0.16674569,119950.0,119940.0,0.17187004]
[1755022921203,0.16673614,119950.0,119940.0,0.83910417]
[1755022921623,0.16673614,119950.0,119940.0,0.27961529]
[1755022921890,0.72685884,119950.0,119940.0,0.11286525]
[1755022922102,0.72622502,119950.0,119940.0,0.160772]
[1755022922320,0.72622502,119950.0,119940.0,0.025022]
[1755022922459,0.80224871,119950.0,119940.0,0.025022]
[1755022922673,0.81969773,119950.0,119940.0,0.025022]
[1755022922880,0.81969773,119950.0,119920.0,0.20311]
[1755022922881,0.16676394,119930.0,119920.0,0.20311]
[1755022923083,0.72688664,119930.0,119920.0,0.33571]
[1755022923287,0.16677785,119920.0,119900.0,0.0004]
[1755022923491,0.72691446,119910.0,119900.0,0.08623325]
[1755022923721,0.55948888,119910.0,119900.0,0.38764892]
[1755022924102,0.16677785,119920.0,119900.0,0.38764892]
[1755022924103,0.72626673,119920.0,119900.0,0.38764892]
[1755022924337,0.00063382,119910.0,119900.0,0.30492567]
[1755022924522,0.72691446,119910.0,119900.0,0.13812]
[1755022924722,0.55948888,119910.0,119900.0,0.32794667]
[1755022924926,0.72626673,119920.0,119910.0,0.16679176]
[1755022925122,0.64197331,119920.0,119910.0,0.17191176]
[1755022925372,0.18625252,119930.0,119920.0,0.16677785]
[1755022925525,0.18630121,119930.0,119920.0,0.30138785]
[1755022925748,0.18630121,119930.0,119920.0,0.30449785]
[1755022926993,0.74579009,119930.0,119920.0,0.30449785]
[1755022927211,0.7346397,119930.0,119920.0,0.13772]
[1755022927409,0.7346397,119930.0,119920.0,0.1326]
[1755022927792,0.7346397,119930.0,119920.0,0.29937785]
[1755022928165,0.16677785,119920.0,119900.0,0.37031567]
[1755022928367,0.16677785,119920.0,119910.0,0.29939176]
[1755022928573,0.72626673,119920.0,119910.0,0.1326]
[1755022928789,0.17515082,119930.0,119910.0,0.30451176]
[1755022929002,0.75135517,119930.0,119910.0,0.30140176]
[1755022929222,0.75135517,119930.0,119920.0,0.00311]
[1755022929632,0.75135517,119930.0,119920.0,0.00512]
[1755022929855,0.19186629,119930.0,119920.0,0.17189785]
[1755022931009,0.16677785,119920.0,119910.0,0.29939176]
[1755022931200,0.80938498,119920.0,119910.0,0.22044325]
[1755022931536,0.72626673,119920.0,119910.0,0.13571]
[1755022931746,0.16677785,119920.0,119910.0,0.30451176]
[1755022931953,0.16741167,119920.0,119910.0,0.30451176]
[1755022932311,0.16741167,119920.0,119910.0,0.13772]
[1755022932512,0.72690055,119920.0,119910.0,0.13772]
[1755022932716,0.72626673,119920.0,119910.0,0.13772]
[1755022933140,0.16677785,119920.0,119910.0,0.30451176]
[1755022933384,0.24581578,119920.0,119910.0,0.13772]
[1755022933588,0.80467084,119920.0,119910.0,0.13772]
[1755022933800,0.24518196,119920.0,119910.0,0.13772]
[1755022934008,0.72626673,119920.0,119910.0,0.13772]
[1755022934266,0.16677785,119920.0,119910.0,0.30451176]
[1755022934438,0.72690055,119920.0,119910.0,0.30451176]
[1755022934668,0.16677785,119920.0,119910.0,0.30451176]
[1755022934873,0.72690055,119920.0,119910.0,0.30451176]
[1755022935086,0.72626673,119920.0,119910.0,0.30451176]
[1755022935259,0.7346397,119930.0,119920.0,0.16677785]
[1755022935464,0.75208872,119930.0,119920.0,0.00512]
[1755022935859,0.83457315,119930.0,119920.0,0.00512]
[1755022936322,0.25763525,119930.0,119920.0,0.17189785]
[1755022936532,0.17515082,119930.0,119920.0,0.17189785]
[1755022936740,4.869e-05,119930.0,119920.0,0.17189785]
[1755022937511,4.869e-05,119930.0,119920.0,0.81410998]
[1755022938475,4.869e-05,119930.0,119920.0,0.2546211]
[1755022939036,4.869e-05,119930.0,119920.0,0.2796441]
[1755022939862,4.869e-05,119930.0,119920.0,0.83913298]
[1755022941585,4.869e-05,119930.0,119920.0,0.2796441]
[1755022941818,4.869e-05,119930.0,119920.0,0.83913298]
[1755022942553,4.869e-05,119930.0,119920.0,0.2796441]
[1755022944903,4.869e-05,119930.0,119920.0,0.83913298]
[1755022945634,4.869e-05,119930.0,119920.0,0.2796441]
[1755022945849,4.869e-05,119930.0,119920.0,0.83913298]
[1755022947074,4.869e-05,119930.0,119920.0,1.03913298]
[1755022948862,4.869e-05,119930.0,119920.0,1.23917298]
[1755022950460,4.869e-05,119930.0,119920.0,0.6796841]
[1755022950671,4.869e-05,119930.0,119920.0,1.23917298]
[1755022951259,4.869e-05,119930.0,119920.0,0.6796841]
[1755022951406,4.869e-05,119930.0,119920.0,1.23917298]
[1755022952231,4.869e-05,119930.0,119920.0,0.6796841]
[1755022952433,4.869e-05,119930.0,119920.0,1.23917298]
[1755022952643,4.869e-05,119930.0,119920.0,0.6796841]
[1755022952855,4.869e-05,119930.0,119920.0,1.23917298]
[1755022953071,4.869e-05,119930.0,119920.0,0.6796841]
[1755022953276,4.869e-05,119930.0,119920.0,1.23917298]
[1755022954681,4.869e-05,119930.0,119920.0,0.8121641]
[1755022954893,4.869e-05,119930.0,119920.0,1.37165298]
[1755022956938,4.869e-05,119930.0,119920.0,1.23917298]
[1755022957170,4.869e-05,119930.0,119920.0,1.37161298]
[1755022957572,4.869e-05,119930.0,119920.0,0.6796841]
[1755022957773,4.869e-05,119930.0,119920.0,0.8121241]
[1755022958626,4.869e-05,119930.0,119920.0,1.37161298]
[1755022959724,4.869e-05,119930.0,119920.0,0.8121241]
[1755022959950,0.16681263,119930.0,119920.0,0.6796841]
[1755022960132,4.869e-05,119930.0,119920.0,0.6796841]
[1755022960338,4.869e-05,119930.0,119920.0,0.8121241]
[1755022961159,0.72630151,119930.0,119920.0,0.31089625]
[1755022961367,0.72630151,119930.0,119920.0,0.5819811]
[1755022961577,0.16681263,119930.0,119920.0,0.5819811]
[1755022961753,4.869e-05,119930.0,119920.0,0.5870411]
[1755022962371,4.869e-05,119930.0,119920.0,1.14652998]
[1755022962772,4.869e-05,119930.0,119920.0,0.5870411]
[1755022964143,4.869e-05,119930.0,119920.0,1.14652998]
[1755022965076,4.869e-05,119930.0,119920.0,1.17155198]
[1755022965306,4.869e-05,119930.0,119920.0,0.6120631]
[1755022966583,0.16681263,119930.0,119920.0,0.5870011]
[1755022967037,4.869e-05,119930.0,119920.0,0.5870011]
[1755022968187,0.16681263,119930.0,119920.0,0.5870011]
[1755022968620,4.869e-05,119930.0,119920.0,0.4546011]
[1755022968774,4.869e-05,119930.0,119920.0,0.5870011]
[1755022969175,0.16681263,119930.0,119920.0,0.5870011]
[1755022969563,0.16681263,119930.0,119920.0,0.4546011]
[1755022969880,0.16681263,119930.0,119920.0,0.41817325]
[1755022970065,0.16744645,119930.0,119920.0,0.5819411]
[1755022970610,0.16744645,119930.0,119920.0,0.41516325]
[1755022971031,0.16744645,119930.0,119920.0,0.3819011]
[1755022971246,4.869e-05,119930.0,119920.0,0.3849111]
[1755022971508,4.869e-05,119930.0,119920.0,0.3869611]
[1755022972045,0.16681263,119930.0,119920.0,0.3869611]
[1755022972491,4.869e-05,119930.0,119920.0,0.3869611]
[1755022973247,4.869e-05,119930.0,119920.0,0.94644998]
[1755022973654,4.869e-05,119930.0,119920.0,0.3869611]
[1755022974012,4.869e-05,119930.0,119920.0,0.94644998]
[1755022974215,4.869e-05,119930.0,119920.0,0.3869611]
[1755022974916,4.869e-05,119930.0,119900.0,0.20345]
[1755022974917,0.16679176,119910.0,119900.0,0.20345]
[1755022975129,0.72691446,119910.0,119900.0,0.44055125]
[1755022975308,0.71876064,119910.0,119900.0,0.41552325]
[1755022975605,0.15927176,119910.0,119900.0,0.41552325]
[1755022975816,0.15990558,119910.0,119900.0,0.41552325]
[1755022976237,0.71939446,119910.0,119900.0,0.3328]
[1755022976445,0.15927176,119910.0,119900.0,0.3328]
[1755022976644,0.71939446,119910.0,119900.0,0.3328]
[1755022976866,0.71876064,119910.0,119900.0,0.3328]
[1755022977524,0.88630449,119910.0,119900.0,0.20044]
[1755022977735,0.88630449,119910.0,119900.0,0.3328]
[1755022979577,0.88630449,119910.0,119900.0,0.20044]
[1755022979780,0.88630449,119910.0,119900.0,0.3328]
[1755022980025,0.96902774,119910.0,119900.0,0.3328]
[1755022980217,0.99397774,119910.0,119900.0,0.3328]
[1755022980450,0.92636734,119910.0,119900.0,0.3328]
[1755022982867,0.84388291,119910.0,119900.0,0.3328]
[1755022983076,0.73620966,119910.0,119900.0,0.3328]
[1755022983298,0.17672078,119910.0,119900.0,0.3328]
[1755022983500,0.73620966,119910.0,119900.0,0.3328]
[1755022986155,0.17672078,119910.0,119900.0,0.3328]
[1755022986370,0.73620966,119910.0,119900.0,0.3328]
[1755022986702,0.75074996,119910.0,119900.0,0.3328]
[1755022988615,0.75074996,119910.0,119900.0,0.20044]
[1755022988763,0.75074996,119910.0,119900.0,0.33276]
[1755022990417,0.73620966,119910.0,119900.0,0.33276]
[1755022990805,0.73620966,119910.0,119900.0,0.33588]
[1755022992204,0.15927176,119910.0,119900.0,0.33789]
[1755022992442,0.15990558,119910.0,119900.0,0.33789]
[1755022993063,0.71939446,119910.0,119900.0,0.33789]
[1755022993267,0.71876064,119910.0,119900.0,0.33789]
[1755022993467,0.76795916,119910.0,119900.0,0.33789]
[1755022993631,0.15927176,119910.0,119900.0,0.33789]
[1755022993830,0.15990558,119910.0,119900.0,0.33789]
[1755022994029,0.71939446,119910.0,119900.0,0.33789]
[1755022994225,0.71876064,119910.0,119900.0,0.33789]
[1755022994853,0.71876064,119910.0,119900.0,0.20557]
[1755022995023,0.80124507,119910.0,119900.0,0.33785]
[1755022995218,0.71876064,119910.0,119900.0,0.33785]
[1755022995823,0.73620966,119910.0,119900.0,0.20044]
[1755022996031,0.73620966,119910.0,119900.0,0.33272]
[1755022996567,0.73620966,119910.0,119900.0,0.33584]
[1755022996929,0.73620966,119910.0,119900.0,0.33785]
[1755022997463,0.22373665,119910.0,119900.0,0.33584]
[1755022997669,0.73620966,119910.0,119900.0,0.33584]
[1755022998291,0.17672078,119910.0,119900.0,0.33584]
[1755022998493,0.73620966,119910.0,119900.0,0.33584]
[1755022999394,0.73620966,119910.0,119900.0,0.33272]
[1755022999974,0.73620966,119910.0,119900.0,0.20044]
[1755023000184,0.81869409,119910.0,119900.0,0.13264]
[1755023000953,0.73620966,119910.0,119900.0,0.13777]
[1755023001167,0.17672078,119910.0,119900.0,0.13777]
[1755023001359,0.73620966,119910.0,119900.0,0.13777]
[1755023001561,0.17672078,119910.0,119900.0,0.13777]
[1755023001781,0.73620966,119910.0,119900.0,0.13777]
[1755023002154,0.81869409,119910.0,119900.0,0.13777]
[1755023002694,0.81869409,119910.0,119900.0,0.13264]
[1755023003161,0.90141734,119910.0,119900.0,0.13264]
[1755023004879,0.34192846,119910.0,119900.0,0.13264]
[1755023005088,0.90141734,119910.0,119900.0,0.13264]
[1755023008470,0.90141734,119910.0,119900.0,0.0004]
[1755023008669,0.90141734,119910.0,119900.0,0.1326]
[1755023011905,0.90141734,119910.0,119900.0,1e-08]
[1755023013587,0.81893291,119910.0,119900.0,1e-08]
[1755023014381,0.97609291,119910.0,119900.0,1e-08]
[1755023014591,0.99409082,119910.0,119900.0,1e-08]
[1755023014801,0.95109291,119910.0,119900.0,1e-08]
[1755023015022,0.25944403,119910.0,119900.0,0.13724001]
[1755023015255,0.8665551,119910.0,119900.0,0.13724001]
[1755023016487,0.30706622,119910.0,119900.0,0.13724001]
[1755023016718,0.8665551,119910.0,119900.0,0.13724001]
[1755023016921,0.76638283,119910.0,119900.0,0.13724001]
[1755023017133,0.78383185,119910.0,119900.0,0.13724001]
[1755023018782,0.8665551,119910.0,119900.0,0.13216001]
[1755023019659,0.8665551,119910.0,119900.0,0.13724001]
[1755023021478,0.8665551,119910.0,119900.0,0.13216001]
[1755023021694,0.30706622,119910.0,119900.0,0.13216001]
[1755023022114,0.8665551,119910.0,119900.0,0.13216001]
[1755023022530,0.8665551,119910.0,119900.0,1e-08]
[1755023026204,0.8665551,119910.0,119900.0,0.00296001]
[1755023027029,0.30706622,119910.0,119900.0,0.00508001]
[1755023027162,0.81893291,119910.0,119900.0,0.00508001]
[1755023027379,0.25944403,119910.0,119900.0,0.00508001]
[1755023027586,0.81893291,119910.0,119900.0,0.00508001]
[1755023029857,0.81893291,119910.0,119900.0,0.00296001]
[1755023030053,0.90141734,119910.0,119900.0,1e-08]
[1755023030640,0.90141734,119910.0,119900.0,0.00296001]
[1755023034096,0.90141734,119910.0,119900.0,1e-08]
[1755023034553,0.90141734,119910.0,119900.0,0.00296001]
[1755023034706,0.90141734,119910.0,119900.0,0.00508001]
[1755023036816,0.34192846,119910.0,119900.0,0.00508001]
[1755023037021,0.90141734,119910.0,119900.0,0.00508001]
[1755023037979,0.88396832,119910.0,119900.0,0.00508001]
[1755023038384,0.88396832,119910.0,119900.0,1e-08]
[1755023039131,0.88396832,119910.0,119900.0,0.00296001]
[1755023040291,1.10106774,119910.0,119900.0,1e-08]
[1755023040473,1.66055662,119910.0,119900.0,1e-08]
[1755023040810,1.12606774,119910.0,119900.0,1e-08]
[1755023041029,1.06179534,119910.0,119900.0,1e-08]
[1755023042092,1.08679534,119910.0,119900.0,1e-08]
[1755023042728,1.66896422,119910.0,119900.0,1e-08]
[1755023043526,0.54998646,119910.0,119900.0,1e-08]
[1755023044277,0.55779954,119910.0,119900.0,1e-08]
[1755023045294,0.54998646,119910.0,119900.0,1e-08]
[1755023046156,0.41794646,119910.0,119900.0,1e-08]
[1755023046385,0.52726646,119910.0,119900.0,1e-08]
[1755023046810,0.50226646,119910.0,119900.0,1e-08]
[1755023047229,0.52726646,119910.0,119900.0,1e-08]
[1755023047434,0.37026646,119910.0,119900.0,1e-08]
[1755023047639,0.50226646,119910.0,119900.0,0.00497001]
[1755023048049,0.52726646,119910.0,119900.0,0.00297001]
[1755023048271,1.08675534,119910.0,119900.0,1e-08]
[1755023050382,1.73399422,119910.0,119900.0,1e-08]
[1755023050788,1.82590413,119910.0,119900.0,1e-08]
[1755023051208,1.26641525,119910.0,119900.0,1e-08]
[1755023051639,1.82590413,119910.0,119900.0,1e-08]
[1755023052226,1.26641525,119910.0,119900.0,1e-08]
[1755023052462,1.82590413,119910.0,119900.0,1e-08]
[1755023054167,1.26641525,119910.0,119900.0,1e-08]
[1755023054309,1.15366525,119910.0,119900.0,1e-08]
[1755023054514,1.17866525,119910.0,119900.0,1e-08]
[1755023054715,1.00421623,119910.0,119900.0,0.00200001]
[1755023054919,1.13617623,119910.0,119900.0,0.00497001]
[1755023055318,1.12862525,119910.0,119900.0,0.00497001]
[1755023055534,1.00421623,119910.0,119900.0,0.00497001]
[1755023056210,0.46217637,119910.0,119900.0,0.00497001]
[1755023056483,1.02166525,119910.0,119900.0,0.00497001]
[1755023056849,1.04666525,119910.0,119900.0,0.00497001]
[1755023057649,1.17862525,119910.0,119900.0,0.00497001]
[1755023058923,0.61913637,119910.0,119900.0,0.00497001]
[1755023059145,1.17862525,119910.0,119900.0,0.00497001]
[1755023059352,1.15362525,119910.0,119900.0,0.00497001]
[1755023059590,1.17862525,119910.0,119900.0,0.00497001]
[1755023060508,1.15362525,119910.0,119900.0,0.00497001]
[1755023060790,1.17862525,119910.0,119900.0,0.00497001]
[1755023061035,1.15362525,119910.0,119900.0,0.00497001]
[1755023061266,1.17862525,119910.0,119900.0,0.00497001]
[1755023061482,1.04666525,119910.0,119900.0,0.00497001]
[1755023061704,1.15362525,119910.0,119900.0,0.00497001]
[1755023061898,1.17862525,119910.0,119900.0,0.00497001]
[1755023062355,1.15362525,119910.0,119900.0,0.00497001]
[1755023062568,1.17862525,119910.0,119900.0,0.00497001]
[1755023063197,1.15362525,119910.0,119900.0,0.00497001]
[1755023063411,0.61913637,119910.0,119900.0,0.00497001]
[1755023063623,1.17862525,119910.0,119900.0,0.00497001]
[1755023065380,1.15362525,119910.0,119900.0,0.00497001]
[1755023068228,0.46217637,119910.0,119900.0,0.00497001]
[1755023068428,0.99666525,119910.0,119900.0,0.00497001]
[1755023068634,0.91418082,119910.0,119900.0,0.00497001]
[1755023071078,0.35469194,119910.0,119900.0,0.00497001]
[1755023071262,0.91418082,119910.0,119900.0,0.00497001]
[1755023076610,1.04606082,119910.0,119900.0,0.00497001]
[1755023076797,1.12854525,119910.0,119900.0,0.00497001]
[1755023077935,0.56905637,119910.0,119900.0,0.00497001]
[1755023078146,1.12854525,119910.0,119900.0,0.00497001]
[1755023078596,0.99666525,119910.0,119900.0,0.00497001]
[1755023080138,1.12850525,119910.0,119900.0,1e-08]
[1755023081294,1.15350525,119910.0,119900.0,1e-08]
[1755023082557,1.17850525,119910.0,119900.0,1e-08]
[1755023082765,1.20341525,119910.0,119900.0,1e-08]
[1755023082949,1.17850525,119910.0,119900.0,1e-08]
[1755023084332,0.2092686,119890.0,119880.0,1e-08]
[1755023084554,1.60791828,119890.0,119880.0,1e-08]
[1755023084788,1.69394341,119890.0,119880.0,1e-08]
[1755023085215,1.71898941,119890.0,119880.0,1e-08]
[1755023085870,0.60001165,119890.0,119880.0,1e-08]
[1755023087590,0.59945154,119890.0,119880.0,1e-08]
[1755023087796,0.62445154,119890.0,119880.0,1e-08]
[1755023095447,0.04244902,119870.0,119860.0,0.0004]
[1755023095596,0.44788175,119870.0,119860.0,0.00243]
[1755023095803,0.44724793,119870.0,119860.0,0.00243]
[1755023096557,1.03178281,119870.0,119860.0,0.00243]
[1755023097286,1.03380281,119870.0,119860.0,1e-08]
[1755023097939,1.05880281,119870.0,119860.0,1e-08]
[1755023099823,1.06129281,119870.0,119860.0,1e-08]
[1755023100015,1.05880281,119870.0,119860.0,1e-08]
[1755023100745,1.0672346,119870.0,119860.0,1e-08]
[1755023103966,0.16688918,119840.0,119830.0,0.5004]
[1755023104182,1.55355562,119840.0,119830.0,0.06315042]
[1755023104395,0.16693097,119810.0,119800.0,0.0004]
[1755023104591,0.72705367,119810.0,119800.0,0.00246]
[1755023104796,0.72641985,119810.0,119800.0,0.00246]
[1755023105225,0.72641985,119810.0,119800.0,0.00294754]
[1755023105980,0.72641985,119810.0,119800.0,0.00613754]
[1755023107792,0.16693097,119810.0,119800.0,0.17308244]
[1755023107992,0.16692951,119820.0,119800.0,0.17308244]
[1755023108199,0.16693097,119810.0,119800.0,0.19401244]
[1755023108414,0.16756333,119820.0,119800.0,0.19401244]
[1755023108415,0.16692951,119820.0,119810.0,0.16693097]
[1755023108610,0.20428872,119820.0,119810.0,0.1710776]
[1755023108843,0.2036549,119820.0,119810.0,0.17218097]
[1755023109578,0.2012549,119820.0,119810.0,0.17218097]
[1755023110431,0.2012549,119820.0,119810.0,0.30390097]
[1755023110628,0.2012549,119820.0,119810.0,0.13697]
[1755023110846,0.76074378,119820.0,119810.0,0.13697]
[1755023111626,0.2012549,119820.0,119810.0,0.30390097]
[1755023113211,0.2012549,119820.0,119810.0,0.13697]
[1755023113828,0.76074378,119820.0,119810.0,0.13697]
[1755023114326,0.76074378,119820.0,119810.0,0.00525]
[1755023114498,0.84860703,119820.0,119810.0,0.13172]
[1755023115122,0.84860703,119820.0,119810.0,0.13378]
[1755023115319,0.28592815,119820.0,119810.0,0.13378]
[1755023115517,0.84541703,119820.0,119810.0,0.13378]
[1755023116403,0.84860703,119820.0,119810.0,0.13378]
[1755023116615,0.84860703,119820.0,119810.0,0.13172]
[1755023117703,0.86605605,119820.0,119810.0,0.13172]
[1755023118872,0.30656717,119820.0,119810.0,0.13172]
[1755023119077,0.86605605,119820.0,119810.0,0.13172]
[1755023123759,0.86605605,119820.0,119810.0,0.14182]
[1755023125007,0.89111205,119820.0,119810.0,0.14182]
[1755023125475,1.02279205,119820.0,119810.0,0.0101]
[1755023127884,0.89111205,119820.0,119810.0,0.0101]
[1755023128090,1.02275205,119820.0,119810.0,0.0101]
[1755023128300,1.60724093,119820.0,119810.0,0.0101]
[1755023128546,1.04775205,119820.0,119810.0,0.0101]
[1755023128745,1.06572121,119820.0,119810.0,0.0101]
[1755023129172,1.07352502,119820.0,119810.0,0.0101]
[1755023130045,1.63301383,119820.0,119810.0,0.0101]
[1755023130270,1.07352495,119820.0,119810.0,0.0101]
[1755023130508,0.91688495,119820.0,119810.0,0.0101]
[1755023130722,0.90908121,119820.0,119810.0,0.01214]
[1755023130935,0.89111205,119820.0,119810.0,0.01214]
[1755023131168,0.89111205,119820.0,119810.0,0.0101]
[1755023131586,1.63302112,119820.0,119810.0,0.0101]
[1755023131938,1.07353224,119820.0,119810.0,0.0101]
[1755023132554,0.19193097,119810.0,119800.0,0.00088754]
[1755023132757,1.72315583,119810.0,119800.0,1e-08]
[1755023132983,1.74894116,119810.0,119800.0,1e-08]
[1755023135321,1.68133076,119810.0,119800.0,1e-08]
[1755023139080,1.67352245,119810.0,119800.0,1e-08]
[1755023139289,1.68132861,119810.0,119800.0,1e-08]
[1755023140669,1.68132861,119810.0,119790.0,1e-08]
[1755023140670,0.23439392,119800.0,119790.0,1e-08]
[1755023140868,1.65551936,119800.0,119790.0,1e-08]
[1755023141083,1.09603048,119800.0,119790.0,1e-08]
[1755023142980,1.09949048,119800.0,119790.0,1e-08]
[1755023145013,0.79389674,119790.0,119780.0,1e-08]
[1755023145237,0.18443574,119770.0,119760.0,0.00346]
[1755023145415,0.86178997,119770.0,119760.0,0.00258635]
[1755023145635,1.00398179,119770.0,119760.0,0.00258635]
[1755023146057,0.46955891,119770.0,119760.0,0.00258635]
[1755023146279,1.61674667,119770.0,119760.0,0.00054635]
[1755023147282,1.05725779,119770.0,119760.0,0.00054635]
[1755023148093,1.61674667,119770.0,119760.0,0.00054635]
[1755023148435,1.05191779,119770.0,119760.0,0.00564635]
[1755023148637,0.32736709,119770.0,119760.0,0.00564635]
[1755023148856,0.91221957,119770.0,119760.0,0.00564635]
[1755023149701,0.91221957,119770.0,119760.0,0.00258635]
[1755023150374,0.91434957,119770.0,119760.0,0.00258635]
[1755023150595,0.48642069,119770.0,119760.0,0.00258635]
[1755023150836,1.04590957,119770.0,119760.0,0.00258635]
[1755023151463,1.60860845,119770.0,119760.0,0.00054635]
[1755023151676,1.04911957,119770.0,119760.0,0.00054635]
[1755023152446,1.04590957,119770.0,119760.0,0.00258635]
[1755023152649,1.04377957,119770.0,119760.0,0.00564635]